fUST/lending_fUST_20250701
["ID","MTS","AMOUNT","RATE_DAILY","PERIOD"]
[368731521,1751333456319,-500.0,0.00021973,2]
[368731522,1751333456328,-503.73763114,0.00021973,2]
[368731523,1751333456338,-521.35283505,0.00021973,2]
[368731524,1751333456349,-500.23124934,0.00021973,2]
[368731525,1751333456359,-500.7795126,0.00021973,2]
[368731526,1751333456368,-500.47971767,0.00021973,2]
[368731527,1751333456377,-500.0,0.00021973,2]
[368731528,1751333456386,-500.41301451,0.00021973,2]
[368731529,1751333456398,-500.0,0.00021973,2]
[368731530,1751333456408,-500.0,0.00021973,2]
[368731531,1751333456418,-500.0,0.00021973,2]
[368731532,1751333456428,-500.0,0.00021973,2]
[368731533,1751333456440,-160.287742,0.00021984,7]
[368731534,1751333456450,-609731.84144326,0.0002199,15]
[368731535,1751333456547,-5300.0,0.0002199,15]
[368731536,1751333456559,-3642.94027108,0.0002199,15]
[368731537,1751333456571,-336.26733391,0.0002199,15]
[368731538,1751333456584,-1567.3008456,0.0002199,15]
[368731539,1751333456595,-617.98410226,0.0002199,15]
[368731540,1751333456616,-593.03537953,0.00021212,2]
[368731541,1751333456626,-458.2995716,0.00021398,2]
[368731542,1751333456781,-460.0,0.00018383,2]
[368731543,1751333456790,-374.40444356,0.00018383,2]
[368731544,1751333456803,-89.97287759,0.00018383,2]
[368731545,1751333456812,-293.13912241,0.00018384,2]
[368731546,1751333456824,-169.88959781,0.00018384,2]
[368731547,1751333456833,-289.38103481,0.00018384,2]
[368731548,1751333456845,-170.61896519,0.00018384,2]
[368731549,1751333456855,-269.38103481,0.00018657,2]
[368731550,1751333456955,-460.59084889,0.00018373,2]
[368731551,1751333456965,-468.26720383,0.00018373,2]
[368731552,1751333456975,-460.0,0.00018383,2]
[368731553,1751333456984,-246.45281733,0.00018657,2]
[368731554,1751333456995,-568.70958669,0.00018657,2]
[368731555,1751333457005,-460.0,0.00018658,2]
[368731556,1751333457016,-460.0,0.00018932,2]
[368731557,1751333457026,-460.0,0.00019206,2]
[368731558,1751333457037,-340.34119277,0.0001948,2]
[368731559,1751333457048,-197042.7605185,0.0002099,2]
[368731560,1751333457060,-804.55728082,0.0002099,2]
[368731561,1751333457071,-4424.79999392,0.0002099,2]
[368731562,1751333457082,-2848.50966926,0.0002099,2]
[368731563,1751333457093,-2868.04370977,0.0002099,2]
[368731564,1751333457167,-462.93502726,0.00018383,2]
[368731565,1751333457177,-1158.3461463,0.0002099,2]
[368731566,1751333457190,-26866.77876162,0.0002099,2]
[368731573,1751333494140,203.5,0.00024959,60]
[368731574,1751333547054,1543.76694968,0.00024959,120]
[368731576,1751333562615,202.9,0.00024971,120]
[368731577,1751333658841,460.0,0.0002491,120]
[368731606,1751334333099,-391.17942994,0.00018273,2]
[368731607,1751334436082,-977.86368062,0.00018182,2]
[368731608,1751334436105,-95.92209288,0.00018273,2]
[368731609,1751334442333,330.13362,0.00013699,2]
[368731610,1751334446094,-567.34620823,0.00018273,2]
[368731611,1751334446115,-207.4,0.00018274,2]
[368731612,1751334446316,-783.94491688,0.00018275,3]
[368731614,1751334540719,283.785349,0.00017281,2]
[368731615,1751334541399,-163.75489393,0.00018129,2]
[368731623,1751334559081,-191.11971137,0.00018129,2]
[368731624,1751334559114,-637.45551825,0.00018272,2]
[368731625,1751334572189,-206.10266659,0.00018272,2]
[368731626,1751334572218,-271.26,0.00018273,3]
[368731627,1751334572241,-26.41508312,0.00018275,3]
[368731628,1751334572262,-300.0,0.0001828,2]
[368731629,1751334572284,-1200.0,0.0001828,2]
[368731630,1751334572304,-1001.82409866,0.00018281,2]
[368731631,1751334572324,-460.0,0.00018281,2]
[368731632,1751334572344,-460.0,0.00018281,2]
[368731633,1751334572367,-460.0,0.00018281,2]
[368731634,1751334572389,-460.0,0.00018281,2]
[368731635,1751334572410,-1000.0,0.00018281,2]
[368731636,1751334572432,-460.0,0.00018281,2]
[368731637,1751334572454,-460.45530829,0.00018281,2]
[368731638,1751334572476,-469.5910102,0.00018281,2]
[368731639,1751334572498,-198.80694658,0.00018281,2]
[368731640,1751334572519,-461.15512617,0.00018281,2]
[368731641,1751334572540,-460.0,0.00018281,2]
[368731642,1751334572561,-460.0,0.00018281,2]
[368731643,1751334572582,-460.0,0.00018281,2]
[368731644,1751334572603,-412.95893042,0.00018281,2]
[368731645,1751334572624,-460.0,0.00018281,2]
[368731646,1751334572646,-460.0,0.00018281,2]
[368731647,1751334572667,-460.4242781,0.00018281,2]
[368731648,1751334572687,-460.0,0.00018281,2]
[368731649,1751334572708,-460.0,0.00018281,2]
[368731650,1751334572729,-460.0,0.00018281,2]
[368731651,1751334572750,-460.0,0.00018281,2]
[368731652,1751334572770,-460.0,0.00018281,2]
[368731653,1751334572791,-461.08564868,0.00018281,2]
[368731654,1751334572811,-460.0,0.00018281,2]
[368731655,1751334572831,-460.86184479,0.00018281,2]
[368731656,1751334572853,-505.80399705,0.00018281,2]
[368731657,1751334572874,-453.57560363,0.00018281,2]
[368731658,1751334572898,-460.0,0.00018281,2]
[368731659,1751334572918,-460.46195491,0.00018281,2]
[368731660,1751334572944,-460.0,0.00018281,2]
[368731661,1751334572964,-460.0,0.00018281,2]
[368731662,1751334572984,-460.0,0.00018281,2]
[368731663,1751334573005,-460.0,0.00018281,2]
[368731664,1751334573033,-152.52374989,0.00018281,2]
[368731665,1751334573056,-460.0,0.00018281,2]
[368731666,1751334573078,-460.0,0.00018281,2]
[368731667,1751334573099,-460.0,0.00018281,2]
[368731668,1751334573121,-460.0,0.00018281,2]
[368731669,1751334573144,-460.0,0.00018281,2]
[368731670,1751334573166,-460.0,0.00018281,2]
[368731671,1751334573188,-460.0,0.00018281,2]
[368731672,1751334573210,-460.0,0.00018281,2]
[368731673,1751334573232,-461.56289269,0.00018281,2]
[368731674,1751334573253,-460.0,0.00018281,2]
[368731675,1751334573274,-271.6453915,0.00018281,2]
[368731676,1751334573296,-460.0,0.00018281,2]
[368731677,1751334573321,-460.0,0.00018281,2]
[368731678,1751334573344,-460.0,0.00018281,2]
[368731679,1751334573366,-920.78,0.00018281,2]
[368731680,1751334573388,-460.0,0.00018281,2]
[368731681,1751334573414,-460.0,0.00018281,2]
[368731682,1751334573434,-460.0,0.00018281,2]
[368731683,1751334573457,-460.0,0.00018281,2]
[368731684,1751334573479,-475.22820776,0.00018281,2]
[368731685,1751334573501,-460.0,0.00018281,2]
[368731686,1751334573527,-460.0,0.00018281,2]
[368731687,1751334573549,-460.0,0.00018281,2]
[368731688,1751334573570,-460.0,0.00018281,2]
[368731689,1751334573591,-460.0,0.00018281,2]
[368731690,1751334573613,-462.10601078,0.00018281,2]
[368731691,1751334573633,-460.0,0.00018281,2]
[368731692,1751334573655,-500.0,0.00018281,2]
[368731693,1751334573678,-500.0,0.00018281,2]
[368731694,1751334573701,-500.0,0.00018281,2]
[368731695,1751334573728,-179.39667091,0.00018281,2]
[368731696,1751334573749,-500.0,0.00018281,2]
[368731697,1751334573771,-500.0,0.00018281,2]
[368731698,1751334573795,-500.0,0.00018281,2]
[368731699,1751334573818,-500.0,0.00018281,2]
[368731700,1751334573839,-500.0,0.00018281,2]
[368731701,1751334573862,-500.0,0.00018281,2]
[368731702,1751334573885,-500.0,0.00018281,2]
[368731703,1751334573907,-500.0,0.00018281,2]
[368731704,1751334573929,-500.0,0.00018281,2]
[368731705,1751334573966,-500.0,0.00018281,2]
[368731706,1751334573989,-500.0,0.00018281,2]
[368731707,1751334574012,-500.0,0.00018281,2]
[368731708,1751334574036,-500.0,0.00018281,2]
[368731709,1751334574058,-350.44798109,0.00018281,2]
[368731710,1751334574080,-500.0,0.00018281,2]
[368731711,1751334574102,-500.0,0.00018281,2]
[368731712,1751334574124,-500.0,0.00018281,2]
[368731713,1751334574145,-500.0,0.00018281,2]
[368731714,1751334574168,-500.0,0.00018281,2]
[368731715,1751334574191,-425.49146749,0.00018281,2]
[368731716,1751334574384,-500.0,0.00018281,2]
[368731717,1751334574406,-476.63308678,0.00018281,2]
[368731718,1751334574430,-468.12425745,0.00018281,2]
[368731719,1751334574454,-500.0,0.00018281,2]
[368731720,1751334574476,-500.0,0.00018281,2]
[368731721,1751334574499,-500.0,0.00018281,2]
[368731722,1751334574520,-500.0,0.00018281,2]
[368731723,1751334574542,-458.46041833,0.00018281,2]
[368731724,1751334574568,-500.0,0.00018281,2]
[368731725,1751334574589,-500.0,0.00018281,2]
[368731726,1751334574612,-500.0,0.00018281,2]
[368731727,1751334574634,-500.0,0.00018281,2]
[368731728,1751334574657,-500.0,0.00018281,2]
[368731729,1751334574679,-500.0,0.00018281,2]
[368731730,1751334574702,-500.0,0.00018281,2]
[368731731,1751334574723,-173.64299323,0.00018281,2]
[368731732,1751334574745,-500.0,0.00018281,2]
[368731733,1751334574768,-500.0,0.00018281,2]
[368731734,1751334574790,-500.0,0.00018281,2]
[368731735,1751334574812,-500.0,0.00018281,2]
[368731736,1751334574835,-500.0,0.00018281,2]
[368731737,1751334574859,-500.0,0.00018281,2]
[368731738,1751334574882,-400.0,0.00018281,2]
[368731739,1751334574905,-500.0,0.00018281,2]
[368731740,1751334574928,-500.0,0.00018281,2]
[368731741,1751334574952,-500.0,0.00018281,2]
[368731742,1751334574973,-500.0,0.00018281,2]
[368731743,1751334574994,-500.0,0.00018281,2]
[368731744,1751334575017,-500.0,0.00018281,2]
[368731745,1751334575039,-500.0,0.00018281,2]
[368731746,1751334575059,-500.0,0.00018281,2]
[368731747,1751334575080,-500.0,0.00018281,2]
[368731748,1751334575100,-500.0,0.00018281,2]
[368731749,1751334575122,-500.0,0.00018281,2]
[368731750,1751334575144,-500.0,0.00018281,2]
[368731751,1751334575165,-500.0,0.00018281,2]
[368731752,1751334575186,-500.0,0.00018281,2]
[368731753,1751334575207,-500.0,0.00018281,2]
[368731754,1751334575229,-500.0,0.00018281,2]
[368731755,1751334575251,-500.0,0.00018281,2]
[368731756,1751334575274,-500.0,0.00018281,2]
[368731757,1751334575295,-500.0,0.00018281,2]
[368731758,1751334575316,-500.0,0.00018281,2]
[368731759,1751334575340,-500.0,0.00018281,2]
[368731760,1751334575359,-500.0,0.00018281,2]
[368731761,1751334575384,-260.59284665,0.00018281,2]
[368731762,1751334575406,-500.0,0.00018281,2]
[368731763,1751334575427,-592.06156236,0.00018281,2]
[368731764,1751334575448,-460.0,0.00018282,2]
[368731765,1751334575469,-460.0,0.00018282,2]
[368731766,1751334575490,-460.0,0.00018282,2]
[368731767,1751334575512,-462.7363197,0.00018282,2]
[368731768,1751334575532,-462.37422812,0.00018282,2]
[368731769,1751334575553,-460.0,0.00018282,2]
[368731770,1751334575573,-440.56198844,0.00018282,2]
[368731771,1751334575594,-461.40990005,0.00018282,2]
[368731772,1751334575615,-460.81062174,0.00018282,2]
[368731773,1751334575636,-460.0,0.00018282,2]
[368731774,1751334575655,-461.64740756,0.00018282,2]
[368731775,1751334575676,-460.0,0.00018282,2]
[368731776,1751334575697,-463.16573853,0.00018282,2]
[368731777,1751334575718,-460.0,0.00018282,2]
[368731778,1751334575739,-460.0,0.00018282,2]
[368731779,1751334575760,-460.0,0.00018282,2]
[368731780,1751334575781,-460.0,0.00018282,2]
[368731781,1751334575802,-460.0,0.00018282,2]
[368731782,1751334575822,-460.0,0.00018282,2]
[368731783,1751334575842,-395.631407,0.00018282,2]
[368731784,1751334575866,-460.0,0.00018282,2]
[368731785,1751334575888,-460.0,0.00018282,2]
[368731786,1751334575910,-1641.85,0.00018282,2]
[368731787,1751334575930,-460.0,0.00018282,2]
[368731788,1751334575951,-460.0,0.00018282,2]
[368731789,1751334575973,-748.58,0.00018282,2]
[368731790,1751334575994,-460.0,0.00018282,2]
[368731791,1751334576019,-1446.71,0.00018282,2]
[368731792,1751334576041,-460.0,0.00018282,2]
[368731793,1751334576063,-460.0,0.00018282,2]
[368731794,1751334576088,-460.0,0.00018282,2]
[368731795,1751334576112,-1646.18,0.00018282,2]
[368731796,1751334576134,-460.0,0.00018282,2]
[368731797,1751334576155,-468.10197602,0.00018282,2]
[368731798,1751334576176,-460.0,0.00018282,2]
[368731799,1751334576199,-460.0,0.00018282,2]
[368731800,1751334576221,-460.0,0.00018282,2]
[368731801,1751334576245,-1385.16,0.00018282,2]
[368731802,1751334576267,-460.0,0.00018282,2]
[368731803,1751334576288,-2055.78,0.00018282,2]
[368731804,1751334576311,-460.0,0.00018282,2]
[368731805,1751334576333,-460.0,0.00018282,2]
[368731806,1751334576355,-460.0,0.00018282,2]
[368731807,1751334576377,-510.77,0.00018282,2]
[368731808,1751334576400,-460.0,0.00018282,2]
[368731809,1751334576419,-460.92023666,0.00018282,2]
[368731810,1751334576439,-460.0,0.00018283,2]
[368731811,1751334576461,-460.0,0.00018283,2]
[368731812,1751334576483,-500.0,0.00018283,2]
[368731813,1751334576508,-463.61502862,0.00018283,2]
[368731814,1751334576530,-460.0,0.00018283,2]
[368731815,1751334576551,-460.0,0.00018283,2]
[368731816,1751334576572,-460.99954105,0.00018283,2]
[368731817,1751334576593,-461.40990867,0.00018283,2]
[368731818,1751334576613,-271.87001293,0.00018283,2]
[368731819,1751334576633,-462.95702069,0.00018283,2]
[368731820,1751334576655,-460.0,0.00018283,2]
[368731821,1751334576676,-462.77198019,0.00018283,2]
[368731822,1751334576697,-462.05758495,0.00018283,2]
[368731823,1751334576718,-460.0,0.00018283,2]
[368731824,1751334576739,-460.0,0.00018283,2]
[368731825,1751334576759,-462.15806542,0.00018283,2]
[368731826,1751334576781,-460.64567966,0.00018283,2]
[368731827,1751334576801,-460.0,0.00018283,2]
[368731828,1751334576822,-460.0,0.00018283,2]
[368731829,1751334576843,-460.0,0.00018283,2]
[368731830,1751334576867,-462.13103907,0.00018283,2]
[368731831,1751334576888,-460.0,0.00018283,2]
[368731832,1751334576911,-460.0,0.00018283,2]
[368731833,1751334576934,-460.0,0.00018283,2]
[368731834,1751334576956,-460.0,0.00018283,2]
[368731835,1751334576977,-460.0,0.00018283,2]
[368731836,1751334577110,-461.20143127,0.00018283,2]
[368731837,1751334577138,-462.29818165,0.00018283,2]
[368731838,1751334577159,-462.71957632,0.00018283,2]
[368731839,1751334577180,-461.65735349,0.00018283,2]
[368731840,1751334577201,-467.57228454,0.00018283,2]
[368731841,1751334577223,-460.0,0.00018283,2]
[368731842,1751334577244,-460.0,0.00018283,2]
[368731843,1751334577266,-461.01014225,0.00018283,2]
[368731844,1751334577286,-460.0,0.00018283,2]
[368731845,1751334577306,-460.0,0.00018283,2]
[368731846,1751334577328,-460.0,0.00018283,2]
[368731847,1751334577349,-460.0,0.00018283,2]
[368731848,1751334577369,-462.47457573,0.00018283,2]
[368731849,1751334577390,-460.0,0.00018283,2]
[368731850,1751334577413,-463.1078656,0.00018283,2]
[368731851,1751334577435,-460.0,0.00018283,2]
[368731852,1751334577458,-460.0,0.00018283,2]
[368731853,1751334577479,-461.62982957,0.00018283,2]
[368731854,1751334577508,-460.0,0.00018283,2]
[368731855,1751334577531,-460.93801034,0.00018283,2]
[368731856,1751334577554,-460.0,0.00018283,2]
[368731857,1751334577576,-460.0,0.00018283,2]
[368731858,1751334577597,-461.26874067,0.00018283,2]
[368731859,1751334577619,-83.29586775,0.00018283,2]
[368731885,1751334631853,-813.78,0.00018273,3]
[368731887,1751334631864,-207.4,0.00018274,2]
[368731889,1751334631880,-300.0,0.0001828,2]
[368731891,1751334631889,-1088.0,0.0001828,2]
[368731893,1751334631900,-460.0,0.0001828,2]
[368731895,1751334631910,-460.0,0.0001828,2]
[368731897,1751334631921,-460.0,0.0001828,2]
[368731899,1751334631931,-460.0,0.0001828,2]
[368731901,1751334631941,-460.0,0.0001828,2]
[368731903,1751334631951,-460.0,0.00018281,2]
[368731904,1751334631961,-461.43927887,0.00018281,2]
[368731905,1751334631972,-460.0,0.00018281,2]
[368731906,1751334631982,-460.96203516,0.00018281,2]
[368731907,1751334631992,-461.35753482,0.00018281,2]
[368731908,1751334632002,-460.0,0.00018281,2]
[368731909,1751334632011,-460.0,0.00018281,2]
[368731910,1751334632021,-365.8378068,0.00018281,2]
[368731911,1751334632030,-460.0,0.00018281,2]
[368731912,1751334632040,-717.39,0.00018281,2]
[368731913,1751334632050,-460.0,0.00018281,2]
[368731914,1751334632060,-460.0,0.00018281,2]
[368731915,1751334632070,-475.38072461,0.00018281,2]
[368731916,1751334632080,-460.0,0.00018281,2]
[368731917,1751334632090,-460.0,0.00018281,2]
[368731918,1751334632100,-460.0,0.00018282,2]
[368731919,1751334632109,-865.56,0.00018282,2]
[368731920,1751334632119,-460.0,0.00018282,2]
[368731921,1751334632130,-460.0,0.00018282,2]
[368731922,1751334632141,-460.0,0.00018282,2]
[368731923,1751334632151,-460.0,0.00018282,2]
[368731924,1751334632161,-460.0,0.00018282,2]
[368731925,1751334632171,-460.86786592,0.00018282,2]
[368731926,1751334632181,-460.0,0.00018282,2]
[368731927,1751334632190,-462.01087386,0.00018282,2]
[368731928,1751334632199,-376.70413225,0.00018283,2]
[368731929,1751334632209,-461.60868175,0.00018283,2]
[368731930,1751334632220,-460.0,0.00018283,2]
[368731931,1751334632231,-460.0,0.00018283,2]
[368731932,1751334632241,-500.0,0.00018283,2]
[368731933,1751334632251,-500.0,0.00018283,2]
[368731934,1751334632262,-460.0,0.00018283,2]
[368731935,1751334632273,-460.0,0.00018283,2]
[368731936,1751334632284,-460.0,0.00018283,2]
[368731937,1751334632294,-460.0,0.00018283,2]
[368731938,1751334632303,-460.85221294,0.00018283,2]
[368731939,1751334632312,-460.0,0.00018283,2]
[368731940,1751334632323,-460.0,0.00018283,2]
[368731941,1751334632332,-460.0,0.00018283,2]
[368731942,1751334632343,-460.0,0.00018283,2]
[368731943,1751334632353,-460.0,0.00018283,2]
[368731944,1751334632363,-460.0,0.00018283,2]
[368731945,1751334632374,-460.0,0.00018283,2]
[368731946,1751334632385,-460.0,0.00018283,2]
[368731947,1751334632395,-460.0,0.00018283,2]
[368731948,1751334632405,-460.0,0.00018283,2]
[368731949,1751334632416,-460.0,0.00018283,2]
[368731950,1751334632427,-460.9793291,0.00018283,2]
[368731951,1751334632437,-460.0,0.00018283,2]
[368731952,1751334632447,-460.0,0.00018283,2]
[368731953,1751334632456,-460.0,0.00018283,2]
[368731954,1751334632465,-460.0,0.00018283,2]
[368731955,1751334632475,-460.0,0.00018283,2]
[368731956,1751334632485,-460.0,0.00018283,2]
[368731957,1751334632494,-460.0,0.00018283,2]
[368731958,1751334632504,-460.0,0.00018283,2]
[368731959,1751334632514,-460.0,0.00018283,2]
[368731960,1751334632524,-460.0,0.00018283,2]
[368731961,1751334632533,-460.0,0.00018283,2]
[368731962,1751334632544,-460.0,0.00018283,2]
[368731963,1751334632553,-460.0,0.00018283,2]
[368731964,1751334632563,-460.0,0.00018283,2]
[368731965,1751334632572,-500.0,0.00018283,2]
[368731966,1751334632582,-543.65832095,0.00018283,2]
[368731967,1751334632591,-460.0,0.00018283,2]
[368731968,1751334632601,-460.0,0.00018283,2]
[368731969,1751334632610,-460.0,0.00018283,2]
[368731970,1751334632620,-460.0,0.00018283,2]
[368731971,1751334632630,-460.0,0.00018283,2]
[368731972,1751334632640,-460.0,0.00018283,2]
[368731973,1751334632650,-460.0,0.00018283,2]
[368731974,1751334632660,-1452.89,0.00018283,2]
[368731975,1751334632670,-460.0,0.00018283,2]
[368731976,1751334632680,-460.0,0.00018283,2]
[368731977,1751334632690,-460.0,0.00018283,2]
[368731978,1751334632700,-460.0,0.00018283,2]
[368731979,1751334632709,-460.0,0.00018283,2]
[368731980,1751334632719,-460.0,0.00018283,2]
[368731981,1751334632728,-460.0,0.00018283,2]
[368731982,1751334632738,-460.0,0.00018283,2]
[368731983,1751334632748,-460.0,0.00018283,2]
[368731984,1751334632758,-460.0,0.00018283,2]
[368731985,1751334632767,-460.0,0.00018283,2]
[368731986,1751334632778,-460.0,0.00018283,2]
[368731987,1751334632787,-2680.89,0.00018283,2]
[368731988,1751334632797,-500.0,0.00018283,2]
[368731989,1751334632806,-460.0,0.00018283,2]
[368731990,1751334632816,-460.0,0.00018283,2]
[368731991,1751334632825,-460.0,0.00018283,2]
[368731992,1751334632836,-460.0,0.00018283,2]
[368731993,1751334632846,-460.0,0.00018283,2]
[368731994,1751334632856,-460.0,0.00018283,2]
[368731995,1751334632867,-594.27,0.00018283,2]
[368731996,1751334632880,-460.0,0.00018283,2]
[368731997,1751334632889,-460.0,0.00018283,2]
[368731998,1751334632898,-460.0,0.00018283,2]
[368731999,1751334632909,-528.77,0.00018283,2]
[368732000,1751334632919,-460.0,0.00018283,2]
[368732001,1751334632928,-630.97,0.00018283,2]
[368732002,1751334632938,-460.0,0.00018283,2]
[368732003,1751334632948,-460.0,0.00018283,2]
[368732004,1751334632958,-460.0,0.00018283,2]
[368732005,1751334632968,-460.0,0.00018283,2]
[368732006,1751334632977,-460.0,0.00018283,2]
[368732007,1751334632986,-460.0,0.00018283,2]
[368732008,1751334632995,-460.0,0.00018283,2]
[368732009,1751334633005,-460.0,0.00018283,2]
[368732010,1751334633014,-460.0,0.00018283,2]
[368732011,1751334633023,-460.0,0.00018283,2]
[368732012,1751334633033,-460.72611675,0.00018283,2]
[368732013,1751334633042,-460.0,0.00018283,2]
[368732014,1751334633052,-782.43,0.00018283,2]
[368732015,1751334633062,-367.3734529,0.00018283,2]
[368732016,1751334633071,-460.0,0.00018283,2]
[368732017,1751334633081,-460.0,0.00018283,2]
[368732018,1751334633091,-460.0,0.00018283,2]
[368732019,1751334633100,-460.0,0.00018283,2]
[368732020,1751334633109,-460.0,0.00018283,2]
[368732021,1751334633119,-460.0,0.00018283,2]
[368732022,1751334633129,-504.67620994,0.00018284,2]
[368732023,1751334633138,-500.0,0.00018284,2]
[368732024,1751334633148,-500.0,0.00018284,2]
[368732025,1751334633157,-500.0,0.00018284,2]
[368732026,1751334633167,-500.0,0.00018284,2]
[368732027,1751334633177,-500.0,0.00018284,2]
[368732028,1751334633186,-515.7698298,0.00018284,2]
[368732029,1751334633196,-15359.12491099,0.00018285,2]
[368732030,1751334633209,-60874.94165992,0.00018285,2]
[368732031,1751334633220,-4082.4915736,0.00018285,2]
[368732032,1751334633231,-255.57243791,0.00018285,2]
[368732055,1751334639171,-173.18790279,0.0001828,2]
[368732056,1751334639184,-286.81209721,0.0001828,2]
[368732057,1751334639196,-463.70328979,0.0001828,2]
[368732058,1751334639206,-361.33378619,0.0001828,2]
[368732060,1751334639216,-461.84123595,0.00018281,2]
[368732061,1751334639226,-460.0,0.00018281,2]
[368732062,1751334639236,-460.0,0.00018282,2]
[368732063,1751334639246,-460.0,0.00018282,2]
[368732064,1751334639255,-335.04990733,0.00018285,2]
[368732065,1751334639267,-266.4448124,0.00018285,2]
[368732066,1751334639420,-502.28792207,0.00018285,2]
[368732067,1751334639432,-2207.55940084,0.00018285,2]
[368732068,1751334639446,-2854.12572134,0.00018285,2]
[368732069,1751334639455,-5077.40232827,0.00018372,2]
[368732070,1751334639466,-500.0,0.00018372,2]
[368732071,1751334639476,-500.0,0.00018373,2]
[368732072,1751334639486,-500.0,0.00018373,2]
[368732073,1751334639496,-461.70067599,0.00018373,2]
[368732074,1751334639506,-460.0,0.00018373,2]
[368732075,1751334639516,-460.0,0.00018373,2]
[368732076,1751334639541,-460.0,0.00018373,2]
[368732077,1751334639552,-460.0,0.00018373,2]
[368732078,1751334639562,-463.1330646,0.00018373,2]
[368732080,1751334639572,-397.40229854,0.00018373,2]
[368732081,1751334639581,-192.48805887,0.00018373,2]
[368732082,1751334639591,-461.62147539,0.00018373,2]
[368732083,1751334639601,-461.30459053,0.00018373,2]
[368732084,1751334639612,-460.0,0.00018373,2]
[368732085,1751334639622,-418.36982954,0.00018373,2]
[368732086,1751334639633,-460.0,0.00018373,2]
[368732088,1751334639643,-462.49736194,0.00018373,2]
[368732090,1751334639653,-460.0,0.00018373,2]
[368732092,1751334639663,-460.0,0.00018373,2]
[368732094,1751334639673,-461.55767492,0.00018373,2]
[368732096,1751334639684,-463.0673867,0.00018373,2]
[368732098,1751334639694,-460.0,0.00018373,2]
[368732100,1751334639705,-461.92540009,0.00018373,2]
[368732102,1751334639715,-461.61652202,0.00018373,2]
[368732105,1751334639726,-460.0,0.00018373,2]
[368732107,1751334639736,-460.0,0.00018373,2]
[368732109,1751334639746,-460.0,0.00018373,2]
[368732111,1751334639757,-460.0,0.00018373,2]
[368732113,1751334639767,-460.0,0.00018373,2]
[368732115,1751334639777,-460.0,0.00018373,2]
[368732117,1751334639788,-460.70542833,0.00018373,2]
[368732119,1751334639797,-460.0,0.00018373,2]
[368732121,1751334639809,-462.64462848,0.00018373,2]
[368732123,1751334639818,-460.0,0.00018373,2]
[368732125,1751334639828,-237.95371181,0.00018373,2]
[368732127,1751334639838,-461.21188623,0.00018373,2]
[368732129,1751334639848,-463.55864156,0.00018373,2]
[368732131,1751334639859,-332.85058697,0.00018373,2]
[368732133,1751334639869,-460.0,0.00018373,2]
[368732135,1751334639880,-460.0,0.00018373,2]
[368732137,1751334639890,-460.0,0.00018373,2]
[368732139,1751334639901,-460.0,0.00018373,2]
[368732141,1751334639910,-460.0,0.00018373,2]
[368732143,1751334639920,-460.0,0.00018373,2]
[368732145,1751334639930,-460.0,0.00018373,2]
[368732147,1751334639941,-460.0,0.00018373,2]
[368732148,1751334639951,-460.0,0.00018373,2]
[368732149,1751334639963,-461.70510729,0.00018373,2]
[368732151,1751334639973,-460.0,0.00018373,2]
[368732152,1751334639983,-460.0,0.00018373,2]
[368732153,1751334639995,-461.73206608,0.00018373,2]